bitfinex-derivatives/quotes_SOLF0:USTF0_20260305
["timestamp","ask_amount","ask_price","bid_price","bid_amount"]
[1772728132542,5.87635009,88.533,88.48,3.59753814]
[1772728132840,9.47388823,88.53,88.482,10.168]
[1772728133139,5.87635009,88.53,88.482,10.168]
[1772728133433,5.87635009,88.529,88.467,5.48948994]
[1772728133639,9.47388823,88.52,88.47,3.59753814]
[1772728133839,5.87635009,88.538,88.48,3.59753814]
[1772728134038,10.163,88.528,88.48,13.76653814]
[1772728134639,5.87635009,88.538,88.49,3.59753814]
[1772728135236,5.87635009,88.538,88.491,10.167]
[1772728135642,5.87635009,88.538,88.49,3.59753814]
[1772728135843,5.87635009,88.538,88.491,10.167]
[1772728137241,16.03835009,88.538,88.491,10.167]
[1772728137546,3.59753814,88.53,88.487,5.48948994]
[1772728138639,10.162,88.535,88.487,5.48948994]
[1772728138839,5.87635009,88.534,88.48,3.59753814]
[1772728140045,10.163,88.529,88.48,3.59753814]
[1772728140244,3.59753814,88.52,88.47,9.08702808]
[1772728140649,158.009,88.58,88.401,177.0]
[1772728140650,5.87635009,88.509,88.45,3.59753814]
[1772728141253,3.59753814,88.49,88.44,3.59753814]
[1772728141450,3.59753814,88.49,88.431,5.48948994]
[1772728141649,3.59753814,88.48,88.431,5.48948994]
[1772728142551,10.169,88.479,88.432,10.174]
[1772728144547,10.168,88.488,88.44,3.59753814]
[1772728146155,10.169,88.481,88.432,10.174]
[1772728146350,10.169,88.481,88.435,10.174]
[1772728146852,10.169,88.481,88.436,5.48948994]
[1772728147253,10.169,88.478,88.43,3.59753814]
[1772728148451,10.169,88.478,88.431,10.174]
[1772728148646,10.17,88.471,88.42,5.48948994]
[1772728148847,10.17,88.471,88.42,9.08702808]
[1772728149046,3.59753814,88.47,88.422,10.175]
[1772728149248,5.87635009,88.467,88.405,5.48948994]
[1772728149648,5.87635009,88.467,88.41,3.59753814]
[1772728149850,5.87635009,88.459,88.405,5.48948994]
[1772728150452,5.87635009,88.459,88.41,3.59753814]
[1772728151351,10.17,88.467,88.42,3.59753814]
[1772728151749,5.87635009,88.459,88.4,3.59753814]
[1772728151954,5.87635009,88.446,88.4,3.59753814]
[1772728152460,5.87635009,88.446,88.401,10.178]
[1772728153458,5.87635009,88.461,88.41,3.59753814]
[1772728153653,5.87635009,88.461,88.411,5.48948994]
[1772728153854,3.59753814,88.46,88.411,5.48948994]
[1772728154056,9.47388823,88.46,88.411,5.48948994]
[1772728154259,5.87635009,88.459,88.411,5.48948994]
[1772728155360,5.87635009,88.459,88.413,10.176]
[1772728155655,5.87635009,88.475,88.43,9.08702808]
[1772728155857,5.87635009,88.49,88.441,5.48948994]
[1772728156253,5.87635009,88.49,88.442,10.173]
[1772728156454,3.59753814,88.48,88.43,9.08702808]
[1772728157349,10.169,88.479,88.433,10.174]
[1772728157548,3.59753814,88.48,88.43,9.08702808]
[1772728157748,5.87635009,88.479,88.43,9.08702808]
[1772728158152,16.04535009,88.479,88.43,9.08702808]
[1772728159058,5.87635009,88.479,88.44,3.59753814]
[1772728159255,5.87635009,88.479,88.43,9.08702808]
[1772728159759,10.169,88.478,88.43,9.08702808]
[1772728161353,5.87635009,88.479,88.43,9.08702808]
[1772728161554,5.81002985,88.469,88.42,3.59753814]
[1772728161758,5.81002985,88.469,88.41,3.59753814]
[1772728162861,10.171,88.457,88.42,3.59753814]
[1772728164063,10.171,88.457,88.412,10.177]
[1772728164566,10.17,88.465,88.42,3.59753814]
[1772728164763,5.81002985,88.465,88.42,3.59753814]
[1772728165164,5.81002985,88.465,88.41,9.36390318]
[1772728165965,5.81002985,88.451,88.393,5.76636504]
[1772728166161,5.81002985,88.451,88.41,3.59753814]
[1772728166761,5.81002985,88.451,88.4,3.59753814]
[1772728167361,10.173,88.443,88.403,10.178]
[1772728170166,10.173,88.443,88.4,3.59753814]
[1772728170366,10.174,88.434,88.393,5.76636504]
[1772728171066,10.174,88.434,88.4,3.59753814]
[1772728171267,5.94042509,88.442,88.4,3.59753814]
[1772728171773,10.17,88.471,88.43,9.21602694]
[1772728171958,10.17,88.471,88.44,3.59753814]
[1772728172565,10.17,88.471,88.43,9.21602694]
[1772728173167,5.94042509,88.477,88.43,9.21602694]
[1772728173367,5.94042509,88.477,88.43,3.59753814]
[1772728174569,10.171,88.459,88.42,13.77353814]
[1772728174864,5.94042509,88.477,88.42,13.77353814]
[1772728175060,5.94042509,88.477,88.43,3.59753814]
[1772728175968,10.17,88.467,88.43,3.59753814]
[1772728176165,10.17,88.467,88.426,10.175]
[1772728176770,10.17,88.467,88.42,3.59753814]
[1772728177070,10.171,88.461,88.42,3.59753814]
[1772728178471,10.171,88.461,88.421,10.175]
[1772728178769,10.171,88.461,88.412,5.6184888]
[1772728178770,5.94042509,88.459,88.412,5.6184888]
[1772728179371,10.173,88.444,88.4,3.59753814]
[1772728179672,5.94042509,88.459,88.41,3.59753814]
[1772728180570,10.173,88.445,88.41,3.59753814]
[1772728180771,5.94042509,88.444,88.4,3.59753814]
[1772728181469,10.174,88.435,88.4,3.59753814]
[1772728181770,5.94042509,88.444,88.4,3.59753814]
[1772728181972,5.94042509,88.459,88.41,3.59753814]
[1772728182173,5.94042509,88.459,88.413,5.6184888]
[1772728182670,10.172,88.452,88.413,5.6184888]
[1772728183070,5.94042509,88.459,88.399,5.6184888]
[1772728183262,5.94042509,88.459,88.41,3.59753814]
[1772728184371,3.59753814,88.45,88.4,3.59753814]
[1772728184669,9.53796323,88.45,88.4,3.59753814]
[1772728185171,10.174,88.439,88.401,10.178]
[1772728186874,5.94042509,88.438,88.39,3.59753814]
[1772728187267,5.94042509,88.429,88.382,5.6184888]
[1772728187770,10.176,88.42,88.38,3.59753814]
[1772728189877,10.176,88.42,88.381,10.18]
[1772728190467,10.176,88.42,88.382,5.79178117]
[1772728190669,3.60146046,88.44,88.391,5.79178117]
[1772728190971,3.60146046,88.43,88.38,3.60146046]
[1772728191167,10.175,88.43,88.384,5.79178117]
[1772728191373,10.175,88.43,88.39,3.60146046]
[1772728192374,10.175,88.43,88.388,10.179]
[1772728192575,10.175,88.424,88.38,3.60146046]
[1772728192770,10.175,88.424,88.381,5.79178117]
[1772728193471,10.175,88.424,88.381,15.97178117]
[1772728194077,10.176,88.417,88.381,5.79178117]
[1772728194271,5.74069074,88.429,88.381,5.79178117]
[1772728194874,10.176,88.418,88.381,5.79178117]
[1772728196480,10.175,88.426,88.383,5.79178117]
[1772728196679,10.175,88.426,88.391,5.79178117]
[1772728197578,10.176,88.42,88.355,5.79178117]
[1772728197777,3.60146046,88.41,88.355,5.79178117]
[1772728197982,5.74069074,88.409,88.36,3.60146046]
[1772728198378,5.74069074,88.409,88.361,5.79178117]
[1772728198579,20.347,88.443,88.371,15.97278117]
[1772728198580,10.176,88.416,88.371,15.97278117]
[1772728198878,5.74069074,88.444,88.4,3.60146046]
[1772728199074,5.74069074,88.444,88.4,9.39324163]
[1772728199472,3.60146046,88.44,88.39,3.60146046]
[1772728199872,9.3421512,88.44,88.39,3.60146046]
[1772728200074,5.74069074,88.429,88.38,3.60146046]
[1772728200277,5.74069074,88.439,88.38,3.60146046]
[1772728200474,5.74069074,88.429,88.381,5.79178117]
[1772728200673,5.74069074,88.429,88.39,3.60146046]
[1772728201179,15.91569074,88.429,88.39,3.60146046]
[1772728201481,5.74069074,88.444,88.391,5.79178117]
[1772728201881,5.74069074,88.429,88.38,3.60146046]
[1772728202476,20.338,88.48,88.348,21.08953201]
[1772728202477,9.3421512,88.44,88.39,3.60146046]
[1772728202672,5.74069074,88.439,88.39,3.60146046]
[1772728202876,10.174,88.433,88.392,10.179]
[1772728203080,9.3421512,88.45,88.401,5.79178117]
[1772728203283,5.74069074,88.449,88.401,5.79178117]
[1772728203486,3.60146046,88.46,88.41,9.39324163]
[1772728203882,3.60146046,88.44,88.395,5.79178117]
[1772728204082,3.60146046,88.47,88.42,9.39324163]
[1772728204287,5.74069074,88.469,88.411,5.79178117]
[1772728204486,10.17,88.467,88.42,9.39324163]
[1772728204682,3.60146046,88.45,88.403,5.79178117]
[1772728204888,5.74069074,88.449,88.403,5.79178117]
[1772728205289,5.74069074,88.464,88.411,5.79178117]
[1772728205789,10.171,88.459,88.411,5.79178117]
[1772728205985,3.60146046,88.46,88.411,5.79178117]
[1772728206287,3.60146046,88.46,88.413,5.79178117]
[1772728206482,5.74069074,88.464,88.42,3.60146046]
[1772728207080,5.74069074,88.464,88.413,5.79178117]
[1772728207280,5.74069074,88.459,88.401,5.79178117]
[1772728207482,9.49321055,88.502,88.411,5.79178117]
[1772728207685,3.60146046,88.52,88.458,5.79178117]
[1772728207882,3.60146046,88.51,88.461,5.79178117]
[1772728208587,13.76746046,88.5,88.45,3.60146046]
[1772728208791,3.60146046,88.51,88.46,3.60146046]
[1772728209388,3.60146046,88.5,88.45,3.60146046]
[1772728209592,2.04106909,88.499,88.447,5.79178117]
[1772728209787,3.60146046,88.51,88.461,5.79178117]
[1772728209990,2.04547033,88.515,88.47,3.60146046]
[1772728210890,3.60146046,88.53,88.48,3.60146046]
[1772728211294,5.66221145,88.52,88.471,5.79178117]
[1772728211498,3.60146046,88.51,88.46,3.60146046]
[1772728211687,2.06505528,88.509,88.453,5.79178117]
[1772728211891,3.60146046,88.5,88.453,5.79178117]
[1772728212491,2.06505528,88.509,88.461,5.79178117]
[1772728212695,2.0651345,88.528,88.47,3.60146046]
[1772728213094,2.0651345,88.528,88.48,3.60146046]
[1772728213294,2.00698797,88.545,88.49,3.60146046]
[1772728213592,2.00698797,88.545,88.5,3.60146046]
[1772728213796,2.00698797,88.545,88.438,20.347]
[1772728213797,5.61262029,88.53,88.47,5.79178117]
[1772728214098,5.61262029,88.53,88.48,3.60146046]
[1772728214301,2.01121525,88.509,88.455,5.79178117]
[1772728214494,3.60146046,88.49,88.441,5.79178117]
[1772728214694,10.167,88.498,88.444,15.96478117]
[1772728214890,10.167,88.498,88.444,5.79178117]
[1772728215093,3.60146046,88.48,88.425,5.79178117]
[1772728215296,3.60146046,88.47,88.425,5.79178117]
[1772728215594,3.60146046,88.47,88.406,5.79178117]
[1772728215794,3.60146046,88.46,88.41,3.60146046]
[1772728216096,3.60146046,88.45,88.406,5.79178117]
[1772728216299,10.171,88.457,88.41,3.60146046]
[1772728216501,2.08838339,88.47,88.406,5.79178117]
[1772728216700,2.09258495,88.489,88.418,5.79178117]
[1772728216897,2.09258495,88.489,88.39,9.64061032]
[1772728217097,2.13408175,88.469,88.4,5.79178117]
[1772728217297,10.171,88.459,88.4,5.79178117]
[1772728217599,2.13408175,88.469,88.4,5.79178117]
[1772728218097,10.171,88.46,88.4,5.79178117]
[1772728218399,2.13408175,88.469,88.4,5.79178117]
[1772728219295,2.13408175,88.469,88.401,10.178]
[1772728219902,2.13408175,88.469,88.4,5.79178117]
[1772728219903,10.173,88.444,88.391,10.179]
[1772728220102,2.13795869,88.453,88.382,5.77097599]
[1772728221003,10.173,88.444,88.389,10.179]
[1772728221405,12.30995869,88.453,88.393,5.77097599]
[1772728222106,10.173,88.444,88.393,5.77097599]
[1772728222599,2.23560655,88.443,88.377,5.77097599]
[1772728223403,2.23560655,88.443,88.379,5.77097599]
[1772728223599,9.64061032,88.46,88.331,20.372]
[1772728223600,2.2378146,88.46,88.381,5.77097599]
[1772728223805,10.171,88.459,88.405,15.94797599]
[1772728224196,2.2378146,88.46,88.41,10.177]
[1772728224403,10.17,88.468,88.411,5.77097599]
[1772728224795,10.17,88.468,88.4,9.64061032]
[1772728224796,10.17,88.468,88.413,5.77097599]
[1772728225002,2.24165542,88.476,88.413,5.77097599]
[1772728225300,2.24165542,88.476,88.332,28.02518377]
[1772728225301,2.24165542,88.476,88.394,5.77097599]
[1772728225599,2.24165542,88.476,88.33,20.372]
[1772728225600,2.33947039,88.446,88.376,15.95197599]
[1772728225800,2.33947039,88.446,88.377,5.77097599]
[1772728226103,10.174,88.436,88.38,5.77097599]
[1772728226400,2.34333051,88.49,88.381,5.77097599]
[1772728226600,10.172,88.45,88.391,5.77097599]
[1772728227403,10.173,88.442,88.391,5.77097599]
[1772728227801,2.34333051,88.469,88.401,5.58180956]
[1772728228107,10.17,88.467,88.401,5.58180956]
[1772728228407,2.34333051,88.469,88.403,10.178]
[1772728228606,10.171,88.459,88.403,15.75980956]
[1772728228908,10.171,88.459,88.404,5.58180956]
[1772728229704,10.172,88.451,88.404,5.58180956]
[1772728229904,10.172,88.451,88.397,10.178]
[1772728230207,9.64061032,88.47,88.397,10.178]
[1772728230208,2.32991742,88.45,88.397,10.178]
[1772728231510,10.173,88.445,88.397,10.178]
[1772728232204,10.175,88.422,88.368,5.58180956]
[1772728232602,2.35362902,88.447,88.368,5.58180956]
[1772728233406,10.174,88.431,88.379,10.18]
[1772728234106,10.176,88.421,88.371,5.58180956]
[1772728234305,2.40711675,88.432,88.371,5.58180956]
[1772728235801,10.175,88.423,88.378,10.18]
[1772728236409,10.175,88.423,88.371,5.58180956]
[1772728236714,10.176,88.415,88.371,5.58180956]
[1772728237012,2.40711675,88.432,88.354,5.58180956]
[1772728237906,10.176,88.415,88.368,10.182]
[1772728238210,10.176,88.415,88.354,5.58180956]
[1772728238608,10.177,88.408,88.37,3.60252837]
[1772728238808,3.60252837,88.42,88.37,3.60252837]
[1772728239007,2.4026035,88.419,88.36,13.78552837]
[1772728239310,20.345,88.451,88.35,13.78652837]
[1772728239311,2.41052598,88.409,88.35,13.78652837]
[1772728239511,3.60252837,88.4,88.35,13.78652837]
[1772728239710,2.41052598,88.409,88.351,5.58180956]
[1772728240103,10.178,88.396,88.351,5.58180956]
[1772728240703,10.178,88.396,88.352,15.76480956]
[1772728241007,10.177,88.407,88.361,5.58180956]
[1772728241208,2.41052598,88.409,88.361,5.58180956]
[1772728242511,2.41052598,88.409,88.35,3.60252837]
[1772728242713,3.60252837,88.4,88.35,3.60252837]
[1772728242908,10.179,88.393,88.35,3.60252837]
[1772728243610,3.60252837,88.4,88.35,3.60252837]
[1772728243611,13.78052837,88.4,88.353,5.58180956]
[1772728244010,10.178,88.4,88.36,3.60252837]
[1772728245610,3.60252837,88.4,88.353,5.58180956]
[1772728245817,3.60252837,88.41,88.361,5.58180956]
[1772728246510,2.55776575,88.456,88.391,5.58180956]
[1772728246814,2.55776575,88.456,88.41,3.60252837]
[1772728247113,3.60252837,88.43,88.384,5.58180956]
[1772728247310,2.55742836,88.439,88.39,3.60252837]
[1772728247516,2.55742836,88.439,88.391,5.58180956]
[1772728248010,11.31,88.525,88.325,158.464]
[1772728248011,2.65490622,88.459,88.42,3.60252837]
[1772728248717,2.65488799,88.478,88.43,3.60252837]
[1772728250013,3.60252837,88.47,88.43,3.60252837]
[1772728250213,2.73607091,88.469,88.41,3.60252837]
[1772728250414,2.73607091,88.469,88.43,3.60252837]
[1772728250612,2.73607091,88.489,88.426,6.13942221]
[1772728250815,10.17,88.469,88.426,6.13942221]
[1772728251011,10.17,88.469,88.401,6.13942221]
[1772728251211,2.76869558,88.473,88.401,6.13942221]
[1772728251521,2.76869558,88.473,88.4,9.63686089]
[1772728251522,10.17,88.47,88.412,6.13942221]
[1772728252623,2.76833284,88.48,88.422,6.13942221]
[1772728253515,10.168,88.485,88.425,6.13942221]
[1772728254021,10.168,88.485,88.38,9.63686089]
[1772728254022,2.78130104,88.472,88.411,6.13942221]
[1772728254220,2.78130104,88.491,88.421,6.13942221]
[1772728254619,10.169,88.482,88.428,6.13942221]
[1772728255021,2.78130104,88.491,88.401,6.13942221]
[1772728255720,2.78130104,88.491,88.419,6.13942221]
[1772728257026,10.169,88.475,88.43,6.13942221]
[1772728258322,10.17,88.467,88.42,10.176]
[1772728258623,2.78130104,88.491,88.423,10.175]
[1772728259020,2.78130104,88.491,88.423,16.31442221]
[1772728259520,2.78130104,88.491,88.424,6.13942221]
[1772728259716,10.169,88.476,88.424,6.13942221]
[1772728259923,10.169,88.476,88.425,10.175]
[1772728260117,10.169,88.476,88.426,6.13942221]
[1772728260318,2.78130104,88.491,88.426,6.13942221]
[1772728260319,10.17,88.469,88.426,6.13942221]
[1772728260721,10.172,88.451,88.405,6.13942221]
[1772728260926,2.89465963,88.468,88.405,6.13942221]
[1772728261127,18.05272745,88.497,88.415,6.13942221]
[1772728261316,9.63686089,88.52,88.431,5.61988599]
[1772728261515,2.89623222,88.534,88.451,5.61988599]
[1772728261716,2.89623222,88.534,88.45,9.63686089]
[1772728261717,2.89623222,88.534,88.468,5.61988599]
[1772728261931,10.163,88.527,88.468,5.61988599]
[1772728262221,2.89623222,88.534,88.48,5.61988599]
[1772728262423,10.162,88.543,88.48,5.61988599]
[1772728262921,2.89559412,88.541,88.482,5.61988599]
[1772728263122,2.8807355,88.539,88.462,5.61988599]
[1772728263318,2.8807355,88.557,88.498,10.167]
[1772728263516,10.16,88.555,88.498,15.78688599]
[1772728263916,10.16,88.555,88.499,5.61988599]
[1772728264116,2.88036097,88.578,88.511,5.61988599]
[1772728264320,2.88036097,88.599,88.521,5.61988599]
[1772728264526,2.88036097,88.599,88.52,9.63686089]
[1772728264527,10.157,88.583,88.523,15.78388599]
[1772728264824,10.157,88.583,88.524,5.61988599]
[1772728265222,2.88036097,88.599,88.526,5.93197167]
[1772728265430,2.92190043,88.619,88.526,5.93197167]
[1772728266424,2.92100247,88.597,88.529,5.93197167]
[1772728266829,10.157,88.585,88.53,10.163]
[1772728267029,2.92100247,88.597,88.529,5.93197167]
[1772728267325,3.01613936,88.579,88.501,5.93197167]
[1772728268026,10.16,88.56,88.502,5.93197167]
[1772728268226,3.01613936,88.579,88.502,5.93197167]
[1772728268820,3.01613936,88.579,88.506,6.07637214]
[1772728269328,3.01613936,88.579,88.48,9.63686089]
[1772728269329,3.01613936,88.579,88.487,6.07637214]
[1772728269529,10.16,88.552,88.487,6.07637214]
[1772728269828,2.98067683,88.56,88.487,6.07637214]
[1772728269829,2.98038864,88.579,88.487,6.07637214]
[1772728270127,10.16,88.553,88.498,6.07637214]
[1772728270325,157.956,88.61,88.48,9.63686089]
[1772728270326,2.98036486,88.559,88.48,15.71323303]
[1772728270528,2.98036486,88.559,88.48,6.07637214]
[1772728270724,2.98036486,88.559,88.482,6.07637214]
[1772728271830,10.16,88.554,88.493,6.07637214]
[1772728272525,10.161,88.544,88.498,6.07637214]
[1772728274324,10.16,88.555,88.498,6.07637214]
[1772728274524,2.98187962,88.581,88.498,6.07637214]
[1772728276025,2.98187962,88.581,88.48,9.63686089]
[1772728276026,10.159,88.565,88.509,6.07637214]
[1772728276231,2.98187962,88.581,88.509,6.07637214]
[1772728277130,10.158,88.57,88.519,10.164]
[1772728277328,2.98187962,88.581,88.52,6.07637214]
[1772728277525,2.98187962,88.581,88.503,6.07637214]
[1772728278126,2.95935829,88.562,88.503,6.07637214]
[1772728279533,2.95935829,88.562,88.48,9.63686089]
[1772728279534,2.95935829,88.562,88.505,5.79463022]
[1772728279733,2.90712022,88.589,88.505,5.79463022]
[1772728280141,10.157,88.579,88.525,5.79463022]
[1772728280341,2.90693204,88.606,88.525,5.79463022]
[1772728281639,10.156,88.59,88.537,5.79463022]
[1772728283240,10.155,88.603,88.55,10.161]
[1772728283544,10.155,88.603,88.5,9.63686089]
[1772728283545,2.87454698,88.589,88.507,5.79463022]
[1772728283739,10.158,88.573,88.516,10.165]
[1772728283939,10.158,88.573,88.517,5.79463022]
[1772728285035,10.159,88.565,88.517,5.79463022]
[1772728285342,2.87454698,88.589,88.517,5.79463022]
[1772728285747,10.16,88.561,88.517,5.79463022]
[1772728286136,10.16,88.555,88.517,5.79463022]
[1772728286341,3.01756215,88.572,88.517,5.79463022]
[1772728287541,10.159,88.563,88.517,5.79463022]
[1772728287843,3.01756215,88.572,88.517,5.79463022]
[1772728289544,10.161,88.549,88.517,5.79463022]
[1772728290241,10.16,88.557,88.517,5.79463022]
[1772728290442,3.01756215,88.572,88.517,5.79463022]
[1772728290635,2.64716056,88.569,88.501,10.166]
[1772728291042,10.161,88.55,88.504,10.166]
[1772728291242,10.161,88.55,88.505,5.81450035]
[1772728292345,10.16,88.559,88.509,5.81450035]
[1772728293144,10.159,88.568,88.512,5.81450035]
[1772728293345,2.64742011,88.588,88.521,5.81450035]
[1772728293547,2.64742011,88.609,88.538,5.81450035]
[1772728295059,17.88339719,88.644,88.5,9.63686089]
[1772728295060,2.64693726,88.632,88.554,5.81450035]
[1772728295249,17.88339719,88.644,88.554,5.81450035]
[1772728295449,17.88339719,88.644,88.591,5.81450035]
[1772728295652,20.64179374,88.644,88.591,5.81450035]
[1772728296957,17.88339719,88.644,88.592,5.81450035]
[1772728298057,17.88339719,88.644,88.594,5.81450035]
[1772728298258,28.03339719,88.644,88.594,5.81450035]
[1772728298453,3.48208727,88.683,88.61,9.63686089]
[1772728298654,3.48208727,88.683,88.622,10.152]
[1772728298959,8.91614441,88.719,88.62,9.63686089]
[1772728299153,8.91614441,88.719,88.64,9.63686089]
[1772728299452,8.92637405,88.717,88.64,9.63686089]
[1772728300058,8.92764813,88.734,88.66,9.63686089]
[1772728300456,10.14,88.728,88.67,10.147]
[1772728300657,10.14,88.728,88.66,9.63686089]
[1772728300658,8.92764813,88.734,88.66,9.63686089]
[1772728301161,8.95726061,88.708,88.63,9.63686089]
[1772728301656,8.95726061,88.729,88.65,9.63686089]
[1772728302254,10.141,88.726,88.653,10.149]
[1772728302560,8.95726061,88.729,88.653,10.149]
[1772728302760,8.95726061,88.729,88.65,9.63686089]
[1772728302956,8.95833879,88.715,88.652,10.149]
[1772728303962,8.94170939,88.713,88.65,9.63686089]
[1772728305159,10.143,88.709,88.65,9.63686089]
[1772728305355,8.94170939,88.713,88.63,9.63686089]
[1772728305759,8.91653406,88.709,88.63,9.63686089]
[1772728305954,10.146,88.68,88.63,9.63686089]
[1772728306464,8.91653406,88.691,88.63,9.63686089]
[1772728307056,8.91750313,88.713,88.64,9.63686089]
[1772728307564,9.63686089,88.73,88.569,158.027]
[1772728307565,8.4071994,88.694,88.62,9.63686089]
[1772728308165,8.40752457,88.722,88.64,9.63686089]
[1772728308765,8.40752457,88.702,88.64,9.63686089]
[1772728309465,10.144,88.698,88.64,9.63686089]
[1772728310265,10.145,88.689,88.64,9.63686089]
[1772728310468,10.145,88.689,88.633,10.151]
[1772728310959,10.144,88.699,88.633,10.151]
[1772728311265,10.144,88.699,88.643,10.15]
[1772728311762,8.40752457,88.702,88.63,9.58740085]
[1772728312467,8.40752457,88.702,88.65,9.58740085]
[1772728312664,8.35114835,88.747,88.66,9.58740085]
[1772728313066,10.141,88.721,88.661,10.148]
[1772728314064,8.3520973,88.711,88.652,10.149]
[1772728315362,10.143,88.706,88.652,10.149]
[1772728315865,8.3520973,88.711,88.63,9.58740085]
[1772728316462,10.142,88.71,88.63,9.58740085]
[1772728316667,8.36131915,88.749,88.66,9.58740085]
[1772728316866,8.36131915,88.749,88.68,9.58740085]
[1772728317064,8.36131915,88.719,88.66,9.58740085]
[1772728317469,10.141,88.718,88.661,10.148]
[1772728318862,8.36618736,88.708,88.66,9.58740085]
[1772728319165,8.36618736,88.708,88.63,9.58740085]
[1772728320277,10.145,88.685,88.63,9.58740085]
[1772728320672,8.36609573,88.709,88.63,9.58740085]
[1772728320872,8.36609573,88.709,88.65,9.58740085]
[1772728321366,8.39316504,88.707,88.651,10.149]
[1772728321673,10.144,88.698,88.63,10.152]
[1772728321970,8.39316504,88.707,88.64,9.58740085]
[1772728322270,10.143,88.706,88.64,9.58740085]
[1772728322475,8.39342245,88.705,88.64,19.73740085]
[1772728322774,10.144,88.695,88.64,9.58740085]
[1772728322973,8.39342245,88.705,88.64,9.58740085]
[1772728323171,8.39342245,88.705,88.648,10.149]
[1772728323368,8.39342245,88.705,88.64,9.58740085]
[1772728323575,18.53642245,88.705,88.64,9.58740085]
[1772728324268,8.39342245,88.705,88.657,10.148]
[1772728324966,8.39342245,88.705,88.64,9.58740085]
[1772728325574,8.39342245,88.705,88.63,9.58740085]
[1772728325970,10.146,88.683,88.63,9.58740085]
[1772728326179,8.3768612,88.725,88.63,9.58740085]
[1772728326576,10.145,88.684,88.63,9.58740085]
[1772728326980,8.3768612,88.701,88.63,9.58740085]
[1772728328578,10.145,88.685,88.63,9.58740085]
[1772728329680,10.144,88.695,88.641,10.15]
[1772728330576,8.3768612,88.701,88.63,9.58740085]
[1772728331182,8.3768612,88.701,88.631,10.151]
[1772728331682,8.3768612,88.701,88.62,9.58740085]
[1772728331884,10.147,88.671,88.623,10.152]
[1772728332382,10.148,88.664,88.62,9.58740085]
[1772728332678,8.36951452,88.729,88.64,9.58740085]
[1772728332883,8.36951452,88.729,88.62,9.58740085]
[1772728333079,10.147,88.67,88.623,10.152]
[1772728333381,8.36951452,88.686,88.62,9.58740085]
[1772728335287,10.146,88.679,88.62,9.58740085]
[1772728335486,8.36951452,88.686,88.6,9.58740085]
[1772728335691,8.36951452,88.686,88.62,9.58740085]
[1772728336691,8.36951452,88.686,88.6,9.58740085]
[1772728336991,9.58740085,88.67,88.58,9.58740085]
[1772728337289,8.35747004,88.669,88.58,9.58740085]
[1772728337495,8.35747004,88.641,88.58,9.58740085]
[1772728338486,10.151,88.638,88.589,10.156]
[1772728338887,8.35765179,88.648,88.569,430.18556122]
[1772728339092,8.35765179,88.648,88.59,9.58740085]
[1772728339288,8.35765179,88.648,88.57,9.58740085]
[1772728339490,10.152,88.627,88.576,10.158]
[1772728339893,8.3643115,88.63,88.57,9.58740085]
[1772728340294,10.152,88.629,88.57,9.58740085]
[1772728340500,8.36448891,88.629,88.57,9.58740085]
[1772728340999,10.153,88.622,88.575,10.158]
[1772728341192,8.36448891,88.629,88.57,9.58740085]
[1772728341598,8.36448891,88.629,88.569,430.18556122]
[1772728342600,8.36448891,88.629,88.57,9.58740085]
[1772728343501,8.36448891,88.629,88.569,430.18556122]
[1772728343698,8.36448891,88.629,88.53,9.58740085]
[1772728344194,8.35837414,88.599,88.53,9.58740085]
[1772728344995,8.35837414,88.599,88.556,10.16]
[1772728345198,8.34701238,88.624,88.55,9.58740085]
[1772728345398,8.34701238,88.645,88.57,9.58740085]
[1772728345598,10.15,88.641,88.598,10.155]
[1772728345797,8.34701238,88.645,88.598,10.155]
[1772728345994,8.5079843,88.688,88.59,9.58740085]
[1772728346190,8.34721571,88.663,88.59,9.58740085]
[1772728347491,10.149,88.652,88.606,10.154]
[1772728347905,8.34721571,88.663,88.59,9.58740085]
[1772728348104,10.149,88.655,88.606,10.154]
[1772728349903,10.147,88.674,88.61,9.58740085]
[1772728350200,8.3152804,88.683,88.61,9.58740085]
[1772728350404,8.31540349,88.672,88.61,9.58740085]
[1772728351109,10.147,88.67,88.613,10.153]
[1772728351407,8.32271058,88.669,88.613,10.153]
[1772728351899,8.32271058,88.656,88.59,9.58740085]
[1772728352104,8.32271058,88.656,88.57,9.58740085]
[1772728352507,10.149,88.652,88.59,9.58740085]